[Event "DVM U20w 2019"]
[Site "Braunschweig"]
[Date "2019.12.30"]
[Round "7"]
[White "Schumann, Rabea"]
[Black "Möller, Lisa-Marie"]
[Result "1/2-1/2"]
[ECO "A20"]
[WhiteElo "1873"]
[BlackElo "1934"]
[Annotator "NA"]
[PlyCount "90"]
[EventDate "2019.12.27"]
[EventType "team-tourn"]
[EventRounds "7"]
[EventCountry "GER"]
[SourceTitle "playchess.com"]
[Source "ChessBase"]
[SourceQuality "1"]
[WhiteTeam "SG Güstrow/Teterow"]
[BlackTeam "Düsseldorfer SK"]
[TimeControl "40/5400+30:1800+30"]

1. c4 {[%emt 0:00:00]} e5 {[%emt 0:00:00]} 2. g3 {[%emt 0:00:00]} Nf6 {[%emt 0:00:00]} 3. Bg2 {[%emt 0:00:00]} d5 {[%emt 0:00:09]} 4. cxd5 {[%emt 0:00:11]} Nxd5 {[%emt 0:00:07]} 5. Nc3 {[%emt 0:00:15]} Nb6 {[%emt 0:00:12]} 6. Nf3 {[%emt 0:00:20]} Nc6 {[%emt 0:00:06]} 7. O-O {[%emt 0:00:15]} Be7 {[%emt 0:00:09]} 8. a3 {[%emt 0:00:46]} O-O {[%emt 0:00:27]} 9. d3 {[%emt 0:00:26]} Re8 {[%emt 0:00:13]} 10. Be3 {[%emt 0:00:59] unterminated} Bf8 {[%emt 0:00:54] unterminated} 11. Rc1 $11 {[%emt 0:02:00]} f6 {[%emt 0:10:55]} 12. Nd2 {[%emt 0:07:46]} Nd4 {[%emt 0:04:00]} 13. Nce4 {[%emt 0:17:47]} Nf5 {[%emt 0:13:33]} 14. Bc5 {[%emt 0:03:56]} Bxc5 {[%emt 0:04:42]} 15. Nxc5 {[%emt 0:00:31]} Rb8 {[%emt 0:02:47]} 16. Ndb3 {[%emt 0:08:17]} Nd4 {[%emt 0:07:35]} 17. Na5 {[%emt 0:12:14]} c6 {[%emt 0:06:52]} 18. e3 {[%emt 0:12:18]} Ne6 {[%emt 0:01:18]} 19. Qb3 {[%emt 0:04:49]} Qd6 {[%emt 0:02:26]} 20. Ne4 {[%emt 0:04:59]} Qe7 {[%emt 0:03:24]} 21. Rfd1 {[%emt 0:02:34]} Kh8 {[%emt 0:03:41]} 22. Nc4 {[%emt 0:03:27]} Nxc4 {[%emt 0:02:20]} 23. Qxc4 {[%emt 0:00:42]} Nc7 {[%emt 0:03:35]} 24. d4 {[%emt 0:03:00]} exd4 {[%emt 0:05:59]} 25. Rxd4 {[%emt 0:01:01]} Nb5 {[%emt 0:02:22]} 26. Rd2 {[%emt 0:01:23]} Be6 {[%emt 0:01:00]} 27. Qc5 {[%emt 0:00:48]} Bd5 {[%emt 0:01:47]} 28. Qxe7 {[%emt 0:02:03]} Rxe7 {[%emt 0:00:04]} 29. Nc3 {[%emt 0:00:56]} Nxc3 {[%emt 0:01:36]} 30. Rxc3 {[%emt 0:00:13]} Be6 {[%emt 0:03:02]} 31. Rcd3 {[%emt 0:01:38]} Kg8 {[%emt 0:00:26]} 32. Rd6 {[%emt 0:03:36]} Kf7 {[%emt 0:01:08]} 33. Kf1 {[%emt 0:00:30]} Ree8 {[%emt 0:00:33]} 34. Ke2 {[%emt 0:01:08]} Ke7 {[%emt 0:00:34]} 35. R6d4 {[%emt 0:00:56]} Rbd8 {[%emt 0:01:00]} 36. Rxd8 {[%emt 0:01:10]} Rxd8 {[%emt 0:00:07]} 37. Rxd8 {[%emt 0:00:25]} Kxd8 {[%emt 0:00:03]} 38. Kd3 {[%emt 0:00:33]} Kd7 {[%emt 0:00:35]} 39. Be4 {[%emt 0:03:20]} h6 {[%emt 0:03:24]} 40. Kc3 {[%emt 0:02:00]} Kd6 {[%emt 0:01:24]} 41. f4 {[%emt 0:05:31]} a5 {[%emt 0:04:24]} 42. Bf3 {[%emt 0:04:39]} b6 {[%emt 0:08:05]} 43. Be2 {[%emt 0:09:37]} Kc5 {[%emt 0:14:04]} 44. Bf1 {[%emt 0:04:17]} Bd5 {[%emt 0:05:58]} 45. Bd3 {[%emt 0:00:46]} a4 {[%emt 0:02:26] normal} 1/2-1/2

[Event "DVM U20w 2019"]
[Site "Braunschweig"]
[Date "2019.12.30"]
[Round "7"]
[White "Brunner, Sophia"]
[Black "Rempe, Janne"]
[Result "1-0"]
[ECO "A00"]
[WhiteElo "1852"]
[BlackElo "1559"]
[Annotator "NA"]
[PlyCount "59"]
[EventDate "2019.12.27"]
[EventType "team-tourn"]
[EventRounds "7"]
[EventCountry "GER"]
[SourceTitle "playchess.com"]
[Source "ChessBase"]
[SourceQuality "1"]
[WhiteTeam "SK Nordhorn-Blanke"]
[BlackTeam "SK Doppelbauer Kiel"]
[TimeControl "40/5400+30:1800+30"]

1. b4 {[%emt 0:00:00]} d6 {[%emt 0:00:00]} 2. Bb2 {[%emt 0:00:10]} e5 {[%emt 0:00:37] unterminated} 3. c4 {[%emt 0:01:15] unterminated} Nd7 {[%emt 0:00:51]} 4. Nf3 {[%emt 0:00:48]} Ngf6 {[%emt 0:00:57] unterminated} 5. e3 {[%emt 0:01:04] unterminated} c6 {[%emt 0:01:01] unterminated} 6. Nc3 {[%emt 0:08:26] unterminated} Be7 {[%emt 0:03:34] unterminated} 7. Qc2 {[%emt 0:03:25] unterminated} O-O {[%emt 0:01:35] unterminated} 8. a3 {[%emt 0:02:08]} Re8 {[%emt 0:01:36] unterminated} 9. d4 {[%emt 0:04:28]} Qc7 {[%emt 0:01:44] unterminated} 10. Bd3 {[%emt 0:13:03] unterminated} Nf8 {[%emt 0:06:32] unterminated} 11. h3 {[%emt 0:15:10] unterminated} exd4 {[%emt 0:02:28] unterminated} 12. Nxd4 {[%emt 0:00:21]} Bd7 {[%emt 0:01:01] unterminated} 13. O-O {[%emt 0:00:55] unterminated} Rad8 {[%emt 0:00:46] unterminated} 14. Nf5 {[%emt 0:05:51] unterminated} Qc8 $16 {[%emt 0:01:10]} (14... Bxf5 $14 15. Bxf5 N8d7) 15. Ne4 {[%emt 0:04:52]} Qc7 {[%emt 0:05:56]} 16. Nxe7+ {[%emt 0:00:54]} Rxe7 {[%emt 0:01:19]} 17. Nxf6+ {[%emt 0:00:11]} gxf6 {[%emt 0:00:22]} 18. Bxf6 {[%emt 0:00:06]} Ree8 {[%emt 0:00:12]} 19. Bxd8 {[%emt 0:00:18]} Qxd8 {[%emt 0:00:06]} 20. Bf5 {[%emt 0:00:40]} Qg5 {[%emt 0:01:15]} 21. Bxd7 {[%emt 0:00:31]} Nxd7 {[%emt 0:00:08]} 22. Rad1 {[%emt 0:06:00]} Re6 {[%emt 0:01:30]} 23. Rd4 {[%emt 0:08:53]} h5 {[%emt 0:04:14]} 24. f4 {[%emt 0:06:56]} Qg3 {[%emt 0:01:10]} 25. Qf2 {[%emt 0:00:36]} Qg7 {[%emt 0:01:41]} 26. Rfd1 {[%emt 0:02:07]} Nb6 {[%emt 0:03:02] normal} 27. Rxd6 {[%emt 0:02:51]} Rxd6 {[%emt 0:00:13]} 28. Rxd6 Qf8 {[%emt 0:01:08]} 29. Qg3+ {[%emt 0:01:02]} Kh8 {[%emt 0:00:36] normal} 30. Rd4 {[%emt 0:02:39] normal} 1-0

[Event "DVM U20w 2019"]
[Site "Braunschweig"]
[Date "2019.12.30"]
[Round "7"]
[White "Hartmann, Cora"]
[Black "Margaryan, Venera"]
[Result "1-0"]
[ECO "C00"]
[WhiteElo "1842"]
[BlackElo "1383"]
[Annotator "NA"]
[PlyCount "33"]
[EventDate "2019.12.27"]
[EventType "team-tourn"]
[EventRounds "7"]
[EventCountry "GER"]
[SourceTitle "playchess.com"]
[Source "ChessBase"]
[SourceQuality "1"]
[WhiteTeam "SC Borussia Lichtenberg"]
[BlackTeam "SK Lehrte 1919"]
[BlackTeamCountry "GER"]
[TimeControl "40/5400+30:1800+30"]

1. e4 {[%emt 0:00:00]} e6 {[%emt 0:00:00]} 2. d3 {[%emt 0:00:00]} d5 {[%emt 0:00:00]} 3. Nd2 {[%emt 0:00:01]} c5 {[%emt 0:00:00]} 4. Ngf3 {[%emt 0:00:14]} Nf6 {[%emt 0:00:38]} 5. g3 {[%emt 0:00:11]} Nc6 {[%emt 0:00:17]} 6. Bg2 {[%emt 0:00:19]} g6 {[%emt 0:00:11]} 7. O-O {[%emt 0:00:14]} Bg7 {[%emt 0:00:17]} 8. Re1 {[%emt 0:00:17]} O-O {[%emt 0:00:15]} 9. Qe2 {[%emt 0:03:22]} Re8 {[%emt 0:00:56]} 10. c3 {[%emt 0:08:14]} b6 {[%emt 0:03:23]} 11. Nf1 {[%emt 0:09:21]} Ba6 {[%emt 0:02:43]} 12. Qc2 {[%emt 0:05:09]} dxe4 {[%emt 0:02:16]} 13. dxe4 {[%emt 0:04:01]} Bd3 {[%emt 0:01:56]} 14. Qa4 {[%emt 0:00:44]} b5 {[%emt 0:00:57]} 15. Qa6 {[%emt 0:01:25]} Qc7 {[%emt 0:06:00]} 16. N3d2 {[%emt 0:09:24]} Ne5 {[%emt 0:04:00]} 17. f4 {[%emt 0:05:21] normal} 1-0

[Event "DVM U20w 2019"]
[Site "Braunschweig"]
[Date "2019.12.30"]
[Round "7"]
[White "Möller, Hannah"]
[Black "Visvikis, Kassandra"]
[Result "1-0"]
[ECO "A05"]
[WhiteElo "1832"]
[BlackElo "1568"]
[Annotator "NA RC"]
[PlyCount "29"]
[EventDate "2019.12.27"]
[EventType "team-tourn"]
[EventRounds "7"]
[EventCountry "GER"]
[SourceTitle "playchess.com"]
[Source "ChessBase"]
[SourceQuality "1"]
[WhiteTeam "SV Lingen"]
[BlackTeam "OSG Baden-Baden"]
[TimeControl "40/5400+30:1800+30"]

1. Nf3 {[%emt 0:00:00]} Nf6 {[%emt 0:00:00]} 2. g3 {[%emt 0:00:00]} d5 {[%emt 0:00:00]} 3. Bg2 {[%emt 0:00:00]} Bf5 {[%emt 0:00:34]} 4. d4 {[%emt 0:00:00]} e6 {[%emt 0:02:54]} 5. O-O {[%emt 0:01:08]} c5 {[%emt 0:00:32]} 6. c4 {[%emt 0:00:08]} Nc6 {[%emt 0:03:35]} 7. Nc3 {[%emt 0:05:35]} h6 {[%emt 0:06:13]} 8. cxd5 {[%emt 0:02:25]} Nxd5 {[%emt 0:00:46]} 9. Nxd5 {[%emt 0:00:08]} Qxd5 {[%emt 0:01:26]} 10. Qa4 {[%emt 0:02:44]} Be4 {[%emt 0:01:13]} 11. dxc5 {[%emt 0:05:26]} O-O-O {[%emt 0:04:21]} 12. Be3 {[%emt 0:03:05]} Qf5 {[%emt 0:02:58]} 13. Nh4 {[%emt 0:02:47]} Bc2 {[%emt 0:01:06]} 14. Qb5 {[%emt 0:03:49]} Qf6 {[%emt 0:02:34]} 15. Bxc6 {[%emt 0:02:36] normal} 1-0

[Event "DVM U20w 2019"]
[Site "Braunschweig"]
[Date "2019.12.30"]
[Round "7"]
[White "Meijerink, Inken"]
[Black "Birner, Lucy Jasmin"]
[Result "1-0"]
[ECO "A21"]
[WhiteElo "1743"]
[BlackElo "1611"]
[Annotator "NA"]
[PlyCount "75"]
[EventDate "2019.12.27"]
[EventType "team-tourn"]
[EventRounds "7"]
[EventCountry "GER"]
[SourceTitle "playchess.com"]
[Source "ChessBase"]
[SourceQuality "1"]
[WhiteTeam "SK Nordhorn-Blanke"]
[BlackTeam "SK Doppelbauer Kiel"]
[TimeControl "40/5400+30:1800+30"]

1. c4 {[%emt 0:00:00]} e5 {[%emt 0:00:00]} 2. Nc3 {[%emt 0:00:00]} Bc5 {[%emt 0:00:19]} 3. Nf3 {[%emt 0:00:36]} Nc6 {[%emt 0:00:31]} 4. g3 {[%emt 0:00:26]} d6 {[%emt 0:00:26]} 5. Bg2 {[%emt 0:00:17]} Bf5 {[%emt 0:00:16]} 6. O-O {[%emt 0:01:02]} Nge7 {[%emt 0:00:08]} 7. d3 {[%emt 0:00:26]} h6 {[%emt 0:00:59]} 8. Ne1 {[%emt 0:05:31]} O-O {[%emt 0:01:07]} 9. Nc2 {[%emt 0:00:29]} a6 {[%emt 0:03:52]} 10. a3 {[%emt 0:02:52]} Rb8 {[%emt 0:02:54]} 11. b4 {[%emt 0:00:31]} Ba7 {[%emt 0:00:54]} 12. a4 {[%emt 0:01:14]} Nd4 {[%emt 0:04:25]} 13. Rb1 {[%emt 0:05:40]} Nxc2 {[%emt 0:02:45]} 14. Qxc2 {[%emt 0:00:08]} Qd7 {[%emt 0:03:30]} 15. b5 {[%emt 0:02:28]} a5 {[%emt 0:00:17]} 16. Bd2 {[%emt 0:01:35]} Bc5 {[%emt 0:02:49]} 17. Ne4 {[%emt 0:02:41]} Bb6 {[%emt 0:05:28]} 18. Rfc1 {[%emt 0:08:11]} Bxe4 {[%emt 0:05:55]} 19. Bxe4 {[%emt 0:01:51]} Ng6 {[%emt 0:03:38]} 20. e3 {[%emt 0:03:47]} c5 {[%emt 0:09:01]} 21. bxc6 {[%emt 0:04:43]} bxc6 {[%emt 0:00:16]} 22. Bc3 {[%emt 0:00:37]} f5 {[%emt 0:10:04]} 23. Bg2 {[%emt 0:01:23]} d5 {[%emt 0:02:00]} 24. Qa2 {[%emt 0:02:45]} e4 {[%emt 0:04:35]} 25. dxe4 {[%emt 0:02:47]} fxe4 {[%emt 0:00:33]} 26. cxd5 {[%emt 0:00:20]} cxd5 {[%emt 0:01:06]} 27. Bxe4 {[%emt 0:00:57]} Ne7 {[%emt 0:00:56]} 28. Rb5 {[%emt 0:01:57]} Kh8 {[%emt 0:00:59]} 29. Bxd5 {[%emt 0:01:54]} Nxd5 {[%emt 0:00:29]} 30. Qxd5 {[%emt 0:01:59]} Qxd5 {[%emt 0:01:00]} 31. Rxd5 {[%emt 0:00:08]} Ra8 {[%emt 0:00:10]} 32. Rb1 {[%emt 0:00:48]} Bd8 {[%emt 0:01:47]} 33. Rbb5 {[%emt 0:02:17]} Kh7 {[%emt 0:01:21]} 34. e4 Re8 35. Rd7 {[%emt 0:03:00]} Rxe4 {[%emt 0:01:40]} 36. Rxg7+ {[%emt 0:00:12] normal} Kh8 {[%emt 0:01:01]} 37. Rg4+ {[%emt 0:00:45] normal} Kh7 {[%emt 0:00:19]} 38. Rxe4 {[%emt 0:00:07] normal} 1-0

[Event "DVM U20w 2019"]
[Site "Braunschweig"]
[Date "2019.12.30"]
[Round "7"]
[White "Kiesel, Lara"]
[Black "Wiesner, Paula"]
[Result "0-1"]
[ECO "C16"]
[WhiteElo "1732"]
[BlackElo "1955"]
[Annotator "NA"]
[PlyCount "29"]
[EventDate "2019.12.27"]
[EventType "team-tourn"]
[EventRounds "7"]
[EventCountry "GER"]
[SourceTitle "playchess.com"]
[Source "ChessBase"]
[SourceQuality "1"]
[WhiteTeam "SK Lehrte 1919"]
[BlackTeam "SC Borussia Lichtenberg"]
[TimeControl "40/5400+30:1800+30"]

1. e4 {[%emt 0:00:00]} e6 {[%emt 0:00:00]} 2. d4 {[%emt 0:00:00]} d5 {[%emt 0:00:00]} 3. Nc3 {[%emt 0:00:00]} Bb4 {[%emt 0:02:44]} 4. e5 {[%emt 0:00:00]} Ne7 {[%emt 0:00:06]} 5. f4 {[%emt 0:08:38]} b6 {[%emt 0:14:04]} 6. Nf3 {[%emt 0:03:14]} c5 {[%emt 0:01:27]} 7. a3 {[%emt 0:00:49]} Bxc3+ {[%emt 0:00:38]} 8. bxc3 {[%emt 0:00:05]} Nf5 {[%emt 0:06:39]} 9. Bd3 {[%emt 0:07:06]} Ba6 {[%emt 0:00:53]} 10. Bxa6 {[%emt 0:03:13]} Nxa6 {[%emt 0:00:07]} 11. Qe2 {[%emt 0:01:21]} Nb8 {[%emt 0:01:41]} 12. Qf2 {[%emt 0:03:30]} cxd4 {[%emt 0:03:57]} 13. cxd4 {[%emt 0:00:21]} h5 {[%emt 0:02:55]} 14. a4 {[%emt 0:01:56]} Nc6 {[%emt 0:00:57]} 15. Ba3 {[%emt 0:09:01] normal} 0-1

[Event "DVM U20w 2019"]
[Site "Braunschweig"]
[Date "2019.12.30"]
[Round "7"]
[White "Peglau, Charis"]
[Black "Berelowitsch, Dana"]
[Result "0-1"]
[ECO "B39"]
[WhiteElo "1728"]
[BlackElo "1792"]
[Annotator "NA"]
[PlyCount "38"]
[EventDate "2019.12.27"]
[EventType "team-tourn"]
[EventRounds "7"]
[EventCountry "GER"]
[SourceTitle "playchess.com"]
[Source "ChessBase"]
[SourceQuality "1"]
[WhiteTeam "Schachzentrum Seeblick"]
[BlackTeam "SG Solingen"]
[TimeControl "40/5400+30:1800+30"]

1. e4 {[%emt 0:00:00]} c5 {[%emt 0:00:00]} 2. Nf3 {[%emt 0:00:00]} g6 {[%emt 0:00:00]} 3. d4 {[%emt 0:00:00]} cxd4 {[%emt 0:00:00]} 4. Nxd4 {[%emt 0:00:01]} Bg7 {[%emt 0:00:00]} 5. c4 {[%emt 0:00:18]} Nc6 {[%emt 0:00:00]} 6. Be3 {[%emt 0:00:09]} Nf6 {[%emt 0:00:08]} 7. Nc3 {[%emt 0:00:30]} Ng4 {[%emt 0:00:16]} 8. Nxc6 {[%emt 0:01:39]} Nxe3 {[%emt 0:00:59]} 9. Nxd8 {[%emt 0:00:10]} Nxd1 {[%emt 0:00:26]} 10. Nxd1 {[%emt 0:00:44]} Kxd8 {[%emt 0:00:13]} 11. Rc1 {[%emt 0:00:20]} d6 {[%emt 0:03:12]} 12. c5 {[%emt 0:02:21]} dxc5 {[%emt 0:01:20]} 13. Rxc5 {[%emt 0:00:07]} Be6 {[%emt 0:02:01]} 14. b3 {[%emt 0:02:31]} Rc8 {[%emt 0:03:06]} 15. Rxc8+ {[%emt 0:00:12]} Kxc8 {[%emt 0:01:04]} 16. g3 {[%emt 0:12:28]} Kb8 {[%emt 0:09:29]} 17. f4 {[%emt 0:05:04]} Bd4 {[%emt 0:02:38]} 18. Be2 {[%emt 0:01:39]} Rc8 {[%emt 0:07:10]} 19. Kd2 {[%emt 0:02:56]} Bh3 {[%emt 0:12:07] normal} 0-1

[Event "DVM U20w 2019"]
[Site "Braunschweig"]
[Date "2019.12.30"]
[Round "7"]
[White "Sereda, Yaroslava"]
[Black "Peglau, Dora"]
[Result "1-0"]
[ECO "C10"]
[WhiteElo "1726"]
[BlackElo "1502"]
[Annotator "NA"]
[PlyCount "27"]
[EventDate "2019.12.27"]
[EventType "team-tourn"]
[EventRounds "7"]
[EventCountry "GER"]
[SourceTitle "playchess.com"]
[Source "ChessBase"]
[SourceQuality "1"]
[WhiteTeam "SG Solingen"]
[BlackTeam "Schachzentrum Seeblick"]
[TimeControl "40/5400+30:1800+30"]

1. e4 {[%emt 0:00:00]} e6 {[%emt 0:00:00]} 2. d4 d5 {[%emt 0:00:00]} 3. Nd2 {[%emt 0:00:00]} dxe4 {[%emt 0:00:00]} 4. Nxe4 {[%emt 0:00:09]} Bd7 {[%emt 0:00:00]} 5. Nf3 {[%emt 0:00:35]} Bc6 {[%emt 0:00:00]} 6. Bd3 {[%emt 0:00:51]} Nd7 {[%emt 0:00:13]} 7. O-O {[%emt 0:02:40]} Ngf6 {[%emt 0:00:19]} 8. Nxf6+ {[%emt 0:01:44]} Qxf6 {[%emt 0:00:39]} 9. Be2 {[%emt 0:06:36]} Bd6 {[%emt 0:07:25]} 10. c4 {[%emt 0:16:28]} O-O {[%emt 0:12:48]} 11. d5 {[%emt 0:07:21]} exd5 {[%emt 0:04:42]} 12. cxd5 {[%emt 0:00:16]} Bxd5 {[%emt 0:05:12]} 13. Qxd5 {[%emt 0:00:16]} c6 {[%emt 0:01:26]} 14. Qb3 {[%emt 0:05:34] normal} 1-0

[Event "DVM U20w 2019"]
[Site "Braunschweig"]
[Date "2019.12.30"]
[Round "7"]
[White "Rudolph, Eva"]
[Black "Joers, Pia-Milena"]
[Result "1-0"]
[ECO "B19"]
[WhiteElo "1711"]
[BlackElo "1646"]
[Annotator "NA"]
[PlyCount "42"]
[EventDate "2019.12.27"]
[EventType "team-tourn"]
[EventRounds "7"]
[EventCountry "GER"]
[SourceTitle "playchess.com"]
[Source "ChessBase"]
[SourceQuality "1"]
[WhiteTeam "Düsseldorfer SK"]
[BlackTeam "SG Güstrow/Teterow"]
[TimeControl "40/5400+30:1800+30"]

1. e4 {[%emt 0:00:00]} c6 {[%emt 0:00:00]} 2. d4 {[%emt 0:00:00]} d5 {[%emt 0:00:00]} 3. Nc3 {[%emt 0:00:00]} dxe4 {[%emt 0:00:00]} 4. Nxe4 {[%emt 0:00:00]} Bf5 {[%emt 0:00:00]} 5. Ng3 {[%emt 0:00:03]} Bg6 {[%emt 0:00:00]} 6. h4 {[%emt 0:00:19]} h6 {[%emt 0:00:07]} 7. Nf3 {[%emt 0:00:16]} Nd7 {[%emt 0:00:19]} 8. h5 {[%emt 0:00:22]} Bh7 {[%emt 0:00:05]} 9. Bd3 {[%emt 0:00:19]} Bxd3 {[%emt 0:00:07]} 10. Qxd3 {[%emt 0:00:06]} e6 {[%emt 0:00:14]} 11. Bd2 {[%emt 0:01:39]} Ngf6 {[%emt 0:00:17]} 12. O-O-O {[%emt 0:02:12]} Qc7 {[%emt 0:01:11]} 13. Ne4 {[%emt 0:03:08]} Nxe4 {[%emt 0:00:40]} 14. Qxe4 {[%emt 0:00:09]} Nf6 {[%emt 0:00:08]} 15. Qe2 {[%emt 0:00:58]} O-O-O {[%emt 0:00:45]} 16. g3 {[%emt 0:02:23]} Bd6 {[%emt 0:01:22]} 17. Kb1 {[%emt 0:03:47]} Rhe8 {[%emt 0:01:45]} 18. c4 {[%emt 0:04:33]} c5 {[%emt 0:06:56]} 19. Bc3 {[%emt 0:02:03]} Kb8 {[%emt 0:02:24]} 20. Rc1 {[%emt 0:12:02]} Qb6 {[%emt 0:10:54]} 21. Qe1 {[%emt 0:06:12]} Qc7 {[%emt 0:04:26] normal} 1-0

[Event "DVM U20w 2019"]
[Site "Braunschweig"]
[Date "2019.12.30"]
[Round "7"]
[White "Doll, Rebecca"]
[Black "Moenster, Madita"]
[Result "1/2-1/2"]
[ECO "B22"]
[WhiteElo "1659"]
[BlackElo "1956"]
[Annotator "NA"]
[PlyCount "27"]
[EventDate "2019.12.27"]
[EventType "team-tourn"]
[EventRounds "7"]
[EventCountry "GER"]
[SourceTitle "playchess.com"]
[Source "ChessBase"]
[SourceQuality "1"]
[WhiteTeam "OSG Baden-Baden"]
[BlackTeam "SV Lingen"]
[TimeControl "40/5400+30:1800+30"]

1. e4 {[%emt 0:00:00]} c5 {[%emt 0:00:00]} 2. c3 {[%emt 0:00:00]} Nf6 {[%emt 0:00:00]} 3. e5 {[%emt 0:00:00]} Nd5 {[%emt 0:00:00]} 4. d4 {[%emt 0:00:04] unterminated} cxd4 {[%emt 0:00:03]} 5. cxd4 {[%emt 0:00:26]} g6 {[%emt 0:00:33]} (5... d6 $11) 6. Nf3 {[%emt 0:02:05]} Bg7 {[%emt 0:00:18]} 7. Bc4 {[%emt 0:01:24]} Nb6 {[%emt 0:00:37]} 8. Bb3 {[%emt 0:00:16]} O-O {[%emt 0:00:18]} 9. O-O {[%emt 0:00:20]} Nc6 {[%emt 0:00:19] unterminated} 10. Nc3 $11 {[%emt 0:01:09]} d6 {[%emt 0:05:10]} 11. Bf4 {[%emt 0:10:40]} Bg4 {[%emt 0:04:15]} 12. Re1 {[%emt 0:09:46]} dxe5 {[%emt 0:14:50]} 13. dxe5 {[%emt 0:01:23]} Qb8 {[%emt 0:03:45]} 14. Nd5 {[%emt 0:11:42] normal} 1/2-1/2

[Event "DVM U20w 2019"]
[Site "Braunschweig"]
[Date "2019.12.30"]
[Round "7"]
[White "Schmidt, Pauline"]
[Black "Schilay, Maria"]
[Result "0-1"]
[ECO "C70"]
[WhiteElo "1628"]
[BlackElo "1450"]
[Annotator "NA"]
[PlyCount "29"]
[EventDate "2019.12.27"]
[EventType "team-tourn"]
[EventRounds "7"]
[EventCountry "GER"]
[SourceTitle "playchess.com"]
[Source "ChessBase"]
[SourceQuality "1"]
[WhiteTeam "SG Blau-Weiß Stadtilm"]
[BlackTeam "SC Erlangen 48/88"]
[TimeControl "40/5400+30:1800+30"]

1. e4 {[%emt 0:00:00]} e5 {[%emt 0:00:00]} 2. Nf3 {[%emt 0:00:00]} Nc6 {[%emt 0:00:00]} 3. Bb5 {[%emt 0:00:00]} a6 {[%emt 0:01:30]} 4. Ba4 {[%emt 0:00:00]} b5 {[%emt 0:01:26]} 5. Bb3 {[%emt 0:00:09]} Bc5 {[%emt 0:02:10]} 6. c3 {[%emt 0:08:52]} d6 {[%emt 0:07:54]} 7. h3 {[%emt 0:03:51]} Nf6 {[%emt 0:01:51]} 8. Bc2 {[%emt 0:01:11]} O-O {[%emt 0:04:09]} 9. O-O {[%emt 0:00:56]} Re8 {[%emt 0:04:32]} 10. d4 {[%emt 0:04:03]} exd4 {[%emt 0:00:34]} 11. cxd4 {[%emt 0:00:08]} Bb6 {[%emt 0:01:05]} 12. d5 {[%emt 0:02:53]} Nb4 {[%emt 0:07:23]} 13. Re1 {[%emt 0:03:23]} Nxc2 {[%emt 0:01:05]} 14. Qxc2 {[%emt 0:00:12]} Bb7 {[%emt 0:06:07]} 15. Bg5 {[%emt 0:02:29] normal} 0-1

[Event "DVM U20w 2019"]
[Site "Braunschweig"]
[Date "2019.12.30"]
[Round "7"]
[White "Pavlov, Liliane"]
[Black "Schnabel, Luise"]
[Result "0-1"]
[ECO "E63"]
[WhiteElo "1623"]
[BlackElo "1836"]
[Annotator "NA"]
[PlyCount "37"]
[EventDate "2019.12.27"]
[EventType "team-tourn"]
[EventRounds "7"]
[EventCountry "GER"]
[SourceTitle "playchess.com"]
[Source "ChessBase"]
[SourceQuality "1"]
[WhiteTeam "SC Bavaria Regensburg"]
[BlackTeam "TuRa Harksheide Norderstedt"]
[TimeControl "40/5400+30:1800+30"]

1. d4 {[%emt 0:00:00]} Nf6 {[%emt 0:00:00]} 2. c4 {[%emt 0:00:00]} g6 {[%emt 0:00:00]} 3. Nf3 {[%emt 0:00:00]} Bg7 {[%emt 0:00:13]} 4. g3 {[%emt 0:00:00]} O-O {[%emt 0:00:10]} 5. Bg2 {[%emt 0:00:06]} d6 {[%emt 0:00:17]} 6. O-O {[%emt 0:00:34] unterminated} Nc6 {[%emt 0:00:46]} 7. Nc3 {[%emt 0:01:20]} a6 {[%emt 0:00:52] unterminated} 8. e4 $14 {[%emt 0:04:45]} Bg4 {[%emt 0:01:26]} 9. h3 {[%emt 0:00:26]} Bxf3 {[%emt 0:00:12]} 10. Bxf3 {[%emt 0:00:16]} e5 {[%emt 0:01:16]} 11. d5 {[%emt 0:02:22]} Nd4 {[%emt 0:02:53]} 12. Bg2 {[%emt 0:01:07]} Nd7 {[%emt 0:04:38]} 13. Ne2 {[%emt 0:05:23]} c5 {[%emt 0:14:42]} 14. Nxd4 {[%emt 0:01:12]} exd4 {[%emt 0:02:02]} 15. Rb1 {[%emt 0:01:39]} b5 {[%emt 0:05:02]} 16. b3 {[%emt 0:01:35]} Rb8 {[%emt 0:03:25]} 17. Bd2 {[%emt 0:01:49]} Qc7 {[%emt 0:05:26]} 18. Qc2 {[%emt 0:03:12]} Rb7 {[%emt 0:03:18]} 19. f4 {[%emt 0:01:47] normal} 0-1